[Event "3rd FIDE WCCC Rapid G10 2019"]
[Site "Minsk"]
[Date "2019.08.17"]
[Round "9.6"]
[White "Prochaieva, Alina"]
[Black "Mutina, Sofia"]
[Result "0-1"]
[ECO "A00"]
[WhiteElo "1249"]
[BlackElo "1421"]
[Annotator "NA"]
[PlyCount "114"]
[EventDate "2019.08.16"]
[EventType "swiss"]
[EventCountry "BLR"]
[SourceTitle "playchess.com"]
[Source "ChessBase"]
[SourceQuality "1"]
[TimeControl "600+5"]

1. g3 {[%emt 0:00:00]} d5 {[%emt 0:00:00]} 2. Bg2 {[%emt 0:00:00]} Nf6 {[%emt 0:00:00]} 3. d3 {[%emt 0:00:00]} e6 {[%emt 0:00:00]} 4. a3 {[%emt 0:00:02]} c5 {[%emt 0:00:04]} 5. e3 {[%emt 0:00:06]} Nc6 {[%emt 0:00:02]} 6. Ne2 {[%emt 0:00:11]} Be7 {[%emt 0:00:07]} 7. Nd2 {[%emt 0:00:02]} O-O {[%emt 0:00:05]} 8. O-O {[%emt 0:00:17]} Qc7 {[%emt 0:00:43]} 9. f4 {[%emt 0:00:30]} Ng4 {[%emt 0:00:15]} 10. Rf3 {[%emt 0:00:48]} e5 {[%emt 0:00:13]} 11. h3 {[%emt 0:00:29]} Nf6 {[%emt 0:00:04]} 12. e4 {[%emt 0:00:46]} exf4 {[%emt 0:00:15]} 13. gxf4 {[%emt 0:00:37]} dxe4 {[%emt 0:00:25]} 14. Nxe4 {[%emt 0:01:04]} Rd8 {[%emt 0:00:06]} 15. Nxf6+ {[%emt 0:00:54]} Bxf6 {[%emt 0:00:02]} 16. Qf1 {[%emt 0:00:45]} Qb6 {[%emt 0:00:31]} 17. Kh2 {[%emt 0:00:51]} Be6 {[%emt 0:00:35]} 18. Nc3 {[%emt 0:01:27]} Nd4 {[%emt 0:00:06]} 19. Rf2 {[%emt 0:00:22]} Bh4 {[%emt 0:00:06]} 20. Rd2 {[%emt 0:00:12]} Qc7 {[%emt 0:00:43]} 21. Ne2 {[%emt 0:00:52]} Bg5 {[%emt 0:00:46]} 22. Nxd4 {[%emt 0:00:50]} Bxf4+ {[%emt 0:00:02]} 23. Kh1 {[%emt 0:00:04]} Rxd4 {[%emt 0:00:18]} 24. Rf2 {[%emt 0:00:13]} Bxc1 {[%emt 0:00:02]} 25. Rxc1 {[%emt 0:00:03]} Rad8 {[%emt 0:00:11]} 26. Rd1 {[%emt 0:00:04]} c4 {[%emt 0:00:02]} 27. Rfd2 {[%emt 0:00:07]} cxd3 {[%emt 0:00:31]} 28. Rxd3 {[%emt 0:00:11]} Rxd3 {[%emt 0:00:10]} 29. Rxd3 {[%emt 0:00:04]} Rxd3 {[%emt 0:00:09]} 30. Qxd3 {[%emt 0:00:02]} b6 {[%emt 0:00:07]} 31. Qe4 {[%emt 0:00:10]} g6 {[%emt 0:00:06]} 32. Qd3 {[%emt 0:00:27]} Bf5 {[%emt 0:00:32]} 33. Be4 {[%emt 0:00:02]} Bxe4+ {[%emt 0:00:07]} 34. Qxe4 {[%emt 0:00:01]} Qd7 {[%emt 0:00:23]} 35. Qe2 {[%emt 0:00:16]} Qxh3+ {[%emt 0:00:02]} 36. Kg1 {[%emt 0:00:01]} Qg3+ {[%emt 0:00:16]} 37. Kh1 {[%emt 0:00:02]} h5 {[%emt 0:00:09]} 38. Qe8+ {[%emt 0:00:08]} Kg7 {[%emt 0:00:01]} 39. Qe2 {[%emt 0:00:02]} Qh3+ {[%emt 0:00:01]} 40. Kg1 {[%emt 0:00:02]} Qg4+ {[%emt 0:00:01]} 41. Qxg4 {[%emt 0:00:01]} hxg4 {[%emt 0:00:01]} 42. Kg2 {[%emt 0:00:01]} f5 {[%emt 0:00:01]} 43. b4 {[%emt 0:00:02]} Kf7 {[%emt 0:00:00]} 44. c4 {[%emt 0:00:01]} Ke7 {[%emt 0:00:01]} 45. Kg3 {[%emt 0:00:02]} g5 {[%emt 0:00:02]} 46. Kg2 {[%emt 0:00:02]} Kd6 {[%emt 0:00:01]} 47. a4 {[%emt 0:00:09]} a5 {[%emt 0:00:07]} 48. b5 {[%emt 0:00:26]} Kc5 {[%emt 0:00:04]} 49. Kg3 {[%emt 0:00:01]} Kxc4 {[%emt 0:00:01]} 50. Kg2 {[%emt 0:00:01]} Kb4 {[%emt 0:00:01]} 51. Kg3 {[%emt 0:00:01]} Kxa4 {[%emt 0:00:01]} 52. Kg2 {[%emt 0:00:01]} Kxb5 {[%emt 0:00:01]} 53. Kg3 {[%emt 0:00:01]} a4 {[%emt 0:00:03]} 54. Kg2 {[%emt 0:00:02]} a3 {[%emt 0:00:01]} 55. Kg3 {[%emt 0:00:01]} a2 {[%emt 0:00:01]} 56. Kg2 {[%emt 0:00:01]} a1=Q {[%emt 0:00:01]} 57. Kg3 {[%emt 0:00:05]} Qg1# 0-1